fUST/lending_fUST_20241009
["ID","MTS","AMOUNT","RATE_DAILY","PERIOD"]
[340081034,1728477422075,-1082.9838698,0.00038442,15]
[340081035,1728477422099,-289.20175175,0.00038442,15]
[340081036,1728477422123,-337.57424098,0.00038442,15]
[340081037,1728477422148,-1082.9838698,0.00038442,15]
[340081038,1728477422174,-496.98531752,0.00038442,15]
[340081039,1728477422197,-1082.9838698,0.00038442,15]
[340081040,1728477422220,-1082.9838698,0.00038442,15]
[340081041,1728477422244,-1082.9838698,0.00038442,15]
[340081042,1728477422267,-1082.9838698,0.00038442,15]
[340081043,1728477422290,-1082.9838698,0.00038442,15]
[340081044,1728477422318,-1082.9838698,0.00038442,15]
[340081045,1728477422341,-1082.9838698,0.00038442,15]
[340081046,1728477422366,-1082.9838698,0.00038442,15]
[340081047,1728477422390,-1082.9838698,0.00038442,15]
[340081048,1728477422414,-1082.9838698,0.00038442,15]
[340081049,1728477422441,-1082.9838698,0.00038442,15]
[340081050,1728477422464,-1082.9838698,0.00038442,15]
[340081051,1728477422488,-1082.9838698,0.00038442,15]
[340081052,1728477422513,-1082.9838698,0.00038442,15]
[340081053,1728477422537,-1082.9838698,0.00038442,15]
[340081054,1728477422565,-1082.9838698,0.00038442,15]
[340081055,1728477422588,-1082.9838698,0.00038442,15]
[340081056,1728477422611,-1191.23807139,0.00038442,15]
[340081057,1728477422636,-1191.23807139,0.00038442,15]
[340081058,1728477422660,-1191.23807139,0.00038442,15]
[340081059,1728477422684,-1191.23807139,0.00038442,15]
[340081060,1728477422710,-1191.23807139,0.00038442,15]
[340081061,1728477422734,-1191.23807139,0.00038442,15]
[340081062,1728477422757,-530.48415523,0.00038442,15]
[340081063,1728477422781,-616.2355379,0.00038442,15]
[340081064,1728477422804,-500.0,0.00038442,15]
[340081065,1728477422832,-500.0,0.00038442,15]
[340081066,1728477422857,-500.0,0.00038442,15]
[340081067,1728477422881,-500.0,0.00038442,15]
[340081068,1728477422904,-500.0,0.00038442,15]
[340081069,1728477422928,-500.0,0.00038442,15]
[340081070,1728477422952,-181.94858798,0.00038442,15]
[340081071,1728477422976,-500.0,0.00038442,15]
[340081072,1728477422999,-224.75422911,0.00038442,15]
[340081073,1728477423022,-500.0,0.00038442,15]
[340081074,1728477423047,-477.58441737,0.00038442,15]
[340081075,1728477423073,-500.0,0.00038442,15]
[340081076,1728477423098,-500.0,0.00038442,15]
[340081077,1728477423124,-186.89049105,0.00038442,15]
[340081078,1728477423149,-500.0,0.00038442,15]
[340081079,1728477423174,-500.0,0.00038442,15]
[340081080,1728477423199,-325.16541537,0.00038442,15]
[340081081,1728477423223,-500.0,0.00038442,15]
[340081082,1728477423249,-500.0,0.00038442,15]
[340081083,1728477423275,-500.0,0.00038442,15]
[340081084,1728477423299,-500.0,0.00038442,15]
[340081085,1728477423325,-500.0,0.00038442,15]
[340081086,1728477423349,-500.0,0.00038442,15]
[340081087,1728477423374,-500.0,0.00038442,15]
[340081088,1728477423398,-500.0,0.00038442,15]
[340081089,1728477423425,-500.0,0.00038442,15]
[340081090,1728477423451,-500.0,0.00038442,15]
[340081091,1728477423478,-500.0,0.00038442,15]
[340081092,1728477423503,-500.0,0.00038442,15]
[340081093,1728477423528,-500.0,0.00038442,15]
[340081094,1728477423555,-500.0,0.00038442,15]
[340081095,1728477423584,-151.0,0.00038442,14]
[340081096,1728477423608,-151.0,0.00038442,14]
[340081097,1728477423632,-151.0,0.00038442,14]
[340081098,1728477423657,-151.0,0.00038442,14]
[340081099,1728477423681,-151.0,0.00038442,14]
[340081100,1728477423705,-151.0,0.00038442,14]
[340081101,1728477423729,-151.0,0.00038442,14]
[340081102,1728477423753,-151.0,0.00038442,14]
[340081103,1728477423777,-151.0,0.00038442,14]
[340081104,1728477423801,-196.211188,0.00038442,14]
[340081105,1728477423826,-151.0,0.00038442,14]
[340081106,1728477423849,-151.0,0.00038442,14]
[340081107,1728477423873,-151.0,0.00038442,14]
[340081108,1728477423897,-151.0,0.00038442,14]
[340081109,1728477423921,-151.0,0.00038442,14]
[340081110,1728477423945,-151.0,0.00038442,14]
[340081111,1728477423969,-151.0,0.00038442,14]
[340081112,1728477423992,-151.0,0.00038442,14]
[340081113,1728477424015,-151.0,0.00038442,14]
[340081114,1728477424038,-151.0,0.00038442,14]
[340081115,1728477424060,-151.0,0.00038442,14]
[340081116,1728477424084,-151.0,0.00038442,14]
[340081117,1728477424107,-151.0,0.00038442,14]
[340081118,1728477424130,-151.0,0.00038442,14]
[340081119,1728477424153,-151.0,0.00038442,14]
[340081120,1728477424176,-279.6840397,0.00038442,14]
[340081121,1728477501020,615.0459273,0.00033987,2]
[340081122,1728477526292,174.8,0.00035,2]
[340081123,1728477544114,7858.73474742,0.00035,2]
[340081124,1728477672417,1000.0,0.00034,2]
[340081125,1728477903683,20000.0,0.0003,2]
[340081126,1728477941593,3465.928396,0.00032,2]
[340081127,1728477941619,11534.071604,0.00032,2]
[340081166,1728478235356,-1386.54113491,0.00035,2]
[340081167,1728478235369,-754.72411767,0.00035,2]
[340081168,1728478235379,-1730.0,0.00035,2]
[340081169,1728478235389,-186.6272732,0.00035169,2]
[340081170,1728478235398,-5535.10226306,0.00037434,2]
[340081171,1728478235408,-5535.10226306,0.00037596,2]
[340081172,1728478235417,-150.61215566,0.00037936,2]
[340081173,1728478235427,-962.47027149,0.00037988,2]
[340081174,1728478235436,-1171.69438288,0.00038055,2]
[340081175,1728478235447,-22397.78795053,0.00038058,2]
[340081183,1728478238557,-10623.88081185,0.00038058,2]
[340081184,1728478238567,-5535.10226306,0.0003807,2]
[340081185,1728478238576,-353.92835728,0.00038185,2]
[340081186,1728478240117,-3084.37424137,0.00038185,2]
[340081263,1728479446688,-400.0,0.00034463,2]
[340081264,1728479446698,-400.0,0.00034463,2]
[340081265,1728479446710,-17920.9419752,0.00034464,2]
[340081266,1728479446719,-6276.2,0.00034519,2]
[340081267,1728479446729,-167.934322,0.00035624,2]
[340081268,1728479446738,-200.0,0.00036973,2]
[340081269,1728479446747,-200.0,0.0003791,2]
[340081270,1728479446756,-200.0,0.00038,120]
[340081271,1728479446767,-2096.79966443,0.00038043,2]
[340081272,1728479446777,-1274.86587452,0.00038341,2]
[340081273,1728479446787,-30000.00000001,0.00038342,120]
[340081274,1728479446798,-986.3166128,0.00038342,2]
[340081275,1728479446808,-225.336699,0.000384,7]
[340081276,1728479446819,-1562.4875,0.00038438,30]
[340081277,1728479446829,-1131.41,0.00038439,7]
[340081278,1728479446839,-318.73425617,0.00038441,15]
[340081279,1728479446849,-878.40048032,0.00038441,15]
[340081280,1728479446859,-500.0,0.00038441,15]
[340081281,1728479446869,-500.0,0.00038441,15]
[340081282,1728479446879,-322.29555795,0.00038441,15]
[340081283,1728479446890,-878.40048032,0.00038441,15]
[340081284,1728479446900,-878.40048032,0.00038441,15]
[340081285,1728479446913,-629.2545988,0.00038441,15]
[340081286,1728479446926,-878.40048032,0.00038441,15]
[340081287,1728479446935,-457.64087735,0.00038441,15]
[340081288,1728479446944,-878.40048032,0.00038441,15]
[340081289,1728479446955,-878.40048032,0.00038441,15]
[340081290,1728479446965,-878.40048032,0.00038441,15]
[340081291,1728479446974,-878.40048032,0.00038441,15]
[340081292,1728479446983,-878.40048032,0.00038441,15]
[340081293,1728479446995,-878.40048032,0.00038441,15]
[340081294,1728479447005,-878.40048032,0.00038441,15]
[340081295,1728479447015,-878.40048032,0.00038441,15]
[340081296,1728479447025,-878.40048032,0.00038441,15]
[340081297,1728479447035,-878.40048032,0.00038441,15]
[340081298,1728479447045,-878.40048032,0.00038441,15]
[340081299,1728479447055,-878.40048032,0.00038441,15]
[340081300,1728479447065,-202.79615726,0.00038441,15]
[340081301,1728479447075,-500.0,0.00038441,15]
[340081302,1728479447085,-187.43227678,0.00038441,15]
[340081303,1728479447096,-553.06493526,0.00038441,15]
[340081304,1728479447106,-922.32050433,0.00038441,15]
[340081305,1728479447115,-922.32050433,0.00038441,15]
[340081306,1728479447125,-922.32050433,0.00038441,15]
[340081307,1728479447135,-922.32050433,0.00038441,15]
[340081308,1728479447144,-922.32050433,0.00038441,15]
[340081309,1728479447155,-922.32050433,0.00038441,15]
[340081310,1728479447165,-922.32050433,0.00038441,15]
[340081311,1728479447174,-922.32050433,0.00038441,15]
[340081312,1728479447184,-1328.14152623,0.00038441,15]
[340081313,1728479447194,-151.0,0.00038441,14]
[340081314,1728479447204,-242.436572,0.00038441,14]
[340081315,1728479447214,-151.0,0.00038441,14]
[340081316,1728479447223,-151.0,0.00038441,14]
[340081317,1728479447233,-151.0,0.00038441,14]
[340081318,1728479447243,-151.0,0.00038441,14]
[340081319,1728479447253,-151.0,0.00038441,14]
[340081320,1728479447263,-151.0,0.00038441,14]
[340081321,1728479447272,-151.0,0.00038441,14]
[340081322,1728479447282,-225.792644,0.00038441,14]
[340081323,1728479447292,-151.0,0.00038441,14]
[340081324,1728479447302,-151.0,0.00038441,14]
[340081325,1728479447312,-151.0,0.00038441,14]
[340081326,1728479447321,-151.0,0.00038441,14]
[340081327,1728479447331,-268.923831,0.00038441,14]
[340081328,1728479447340,-151.0,0.00038441,14]
[340081329,1728479447350,-151.0,0.00038441,14]
[340081330,1728479447360,-151.0,0.00038441,14]
[340081331,1728479447369,-151.0,0.00038441,14]
[340081332,1728479447379,-151.0,0.00038441,14]
[340081333,1728479447388,-151.0,0.00038441,14]
[340081334,1728479447398,-151.0,0.00038441,14]
[340081335,1728479447409,-151.0,0.00038441,14]
[340081336,1728479447418,-151.0,0.00038441,14]
[340081337,1728479447427,-151.0,0.00038441,14]
[340081338,1728479447436,-151.0,0.00038441,14]
[340081339,1728479447446,-151.0,0.00038441,14]
[340081340,1728479447456,-233.648433,0.00038441,14]
[340081341,1728479447467,-243.019198,0.00038441,14]
[340081342,1728479447476,-243.019198,0.00038441,14]
[340081343,1728479447486,-243.019198,0.00038441,14]
[340081344,1728479447496,-243.019198,0.00038441,14]
[340081345,1728479447506,-243.019198,0.00038441,14]
[340081346,1728479447515,-243.019198,0.00038441,14]
[340081347,1728479447525,-243.019198,0.00038441,14]
[340081348,1728479447534,-243.019198,0.00038441,14]
[340081349,1728479447544,-151.0,0.00038441,2]
[340081350,1728479447553,-151.0,0.00038441,14]
[340081351,1728479447563,-182.136574,0.00038441,14]
[340081352,1728479447573,-151.0,0.00038441,14]
[340081353,1728479447582,-151.0,0.00038441,14]
[340081354,1728479447592,-151.0,0.00038441,14]
[340081355,1728479447602,-151.0,0.00038441,14]
[340081356,1728479447612,-151.0,0.00038441,14]
[340081357,1728479447623,-151.0,0.00038441,14]
[340081358,1728479447632,-188.65443,0.00038441,14]
[340081359,1728479447642,-118627.51769656,0.00038442,35]
[340081365,1728480326728,5534.20782156,0.00025,7]
[340081366,1728480326763,23565.75013076,0.00025,7]
[340081391,1728480522575,210.1867789,0.0003,2]
[340081539,1728481159320,2015.4290488,0.000326,2]
[340081542,1728481326434,171.590661,0.00031164,2]
[340081543,1728481328406,300.0,0.00032876,2]
[340081544,1728481354594,6442.5083987,0.00032477,2]
[340081545,1728481354626,150.50088243,0.00032059,2]
[340081546,1728481380819,300.0,0.00032876,2]
[340081547,1728481383408,400.0,0.00032876,2]
[340081548,1728481443850,400.0,0.00032876,2]
[340081549,1728481489839,158.15082827,0.00032777,2]
[340081550,1728481534232,151.0,0.0003277,2]
[340081551,1728481570397,159.534834,0.00030686,2]
[340081552,1728481604353,180.683971,0.00031192,2]
[340081553,1728481604591,180.683971,0.00031598,2]
[340081554,1728481604824,180.683971,0.00032005,2]
[340081555,1728481605066,180.683971,0.00032411,2]
[340081556,1728481605327,180.683971,0.00032817,2]
[340081568,1728481723586,450.22473204,0.00031228,2]
[340081569,1728481723613,24449.77526796,0.00031228,2]
[340081606,1728481831991,-414.5531199,0.000326,2]
[340081607,1728481832001,-60.59997413,0.00032877,2]
[340081655,1728481838339,-94.40002587,0.00032877,2]
[340081656,1728481838349,-155.0,0.00032877,2]
[340081657,1728481838358,-155.0,0.00032877,2]
[340081658,1728481838368,-155.0,0.00032877,2]
[340081659,1728481838378,-60.53997413,0.00032877,2]
[340081670,1728481840092,-94.46002587,0.00032877,2]
[340081671,1728481840102,-155.0,0.00032877,2]
[340081672,1728481840112,-155.0,0.00032877,2]
[340081673,1728481840121,-155.0,0.00032877,2]
[340081674,1728481840131,-101.65734803,0.00032877,2]
[340081675,1728481840143,-53.34265197,0.00032877,2]
[340081676,1728481840153,-155.0,0.00032877,2]
[340081677,1728481840163,-155.0,0.00032877,2]
[340081678,1728481840173,-155.0,0.00032877,2]
[340081679,1728481840184,-155.0,0.00032877,2]
[340081680,1728481840195,-174.597226,0.00032877,2]
[340081681,1728481840205,-3847.60542354,0.00032877,2]
[340081682,1728481840214,-500.0,0.000329,5]
[340081683,1728481840224,-500.0,0.000329,5]
[340081684,1728481840233,-500.0,0.000329,5]
[340081685,1728481840243,-300.0,0.000329,5]
[340081686,1728481840252,-500.0,0.000329,5]
[340081687,1728481840261,-500.0,0.000329,2]
[340081688,1728481840271,-500.0,0.000329,5]
[340081689,1728481840282,-491.08363604,0.0003385,5]
[340081690,1728481840292,-1000.0,0.0003427,5]
[340081691,1728481840302,-249.2004,0.0003427,5]
[340081692,1728481840312,-161.50021741,0.0003427,2]
[340081693,1728481840322,-1000.0,0.0003427,5]
[340081694,1728481840332,-503.0,0.00034787,5]
[340081695,1728481840343,-500.0,0.000348,2]
[340081696,1728481840353,-809.21277035,0.00036273,5]
[340081697,1728481840364,-1500.0,0.00036273,5]
[340081698,1728481840376,-500.0,0.00036564,5]
[340081699,1728481840386,-511.93622917,0.00037,2]
[340081700,1728481840396,-500.0,0.000372,5]
[340081701,1728481840406,-500.0,0.000372,5]
[340081702,1728481840416,-158.51635062,0.00037773,2]
[340081703,1728481840426,-1563.25963827,0.00037817,6]
[340081704,1728481840436,-31341.56059385,0.00037818,2]
[340081705,1728481840450,-14199.74508378,0.00037818,2]
[340081706,1728481840460,-500.0,0.00037873,5]
[340081707,1728481840469,-500.0,0.00037873,5]
[340081708,1728481840479,-754.59650367,0.000379,120]
[340081709,1728481840489,-1000.0,0.00037933,5]
[340081710,1728481840501,-640.90504409,0.00038,120]
[340081711,1728481840513,-359.09495591,0.00038,120]
[340081712,1728481840523,-158.5163506,0.0003806,2]
[340081713,1728481840533,-244.9899,0.00038249,2]
[340081714,1728481840543,-237.39879349,0.00038339,120]
[340081763,1728481843323,-841.784297,0.000382,26]
[340081765,1728481843332,-5201.33579317,0.00038339,120]
[340082278,1728481850639,550.22473204,0.00032,2]
[340082279,1728481858696,1745.96152081,0.00031,2]
[340082280,1728482038687,5000.0,0.00031,2]
[340082281,1728482054658,457.51045359,0.00031,2]
[340082282,1728482158524,5000.0,0.00025,2]
[340082283,1728482403885,500.0,0.0001,2]
[340082284,1728482404311,476.96015933,0.0001,2]
[340082285,1728482500674,150.639546,0.0001,2]
[340082286,1728482579399,18872.40029467,0.0001,2]
[340082287,1728482579424,25000.0,0.0001,2]
[340082288,1728482579451,25000.0,0.0001,2]
[340082289,1728482579476,25000.0,0.0001,2]
[340082290,1728482579504,42408.2181123,0.0001,2]
[340082291,1728482579529,1987.82302293,0.0001,2]
[340082330,1728483032176,-269.22586813,0.00030546,2]
[340082399,1728483038497,-49.54179087,0.00030546,2]
[340082401,1728483038507,-660.0,0.00032403,2]
[340082403,1728483038517,-2822.9382758,0.00032551,2]
[340082405,1728483038527,-300.0,0.00032599,2]
[340082407,1728483038537,-400.0,0.00032599,2]
[340082409,1728483038547,-380.0,0.000326,2]
[340082411,1728483038557,-24900.0,0.000326,2]
[340082413,1728483038567,-176.112001,0.00032795,2]
[340082415,1728483038576,-176.112001,0.00033137,2]
[340082418,1728483038587,-185.325,0.000334,35]
[340082420,1728483038597,-176.112001,0.00033479,2]
[340082422,1728483038607,-176.112001,0.00033821,2]
[340082424,1728483038616,-176.112001,0.00034163,2]
[340082426,1728483038627,-176.112001,0.00034504,2]
[340082428,1728483038638,-329.0,0.00035041,2]
[340082430,1728483038647,-500.0,0.00037793,5]
[340082432,1728483038792,-501.4254455,0.00037793,5]
[340082433,1728483038816,-500.0,0.00037813,5]
[340082434,1728483038827,-500.0,0.00037813,5]
[340082435,1728483038837,-500.0,0.00037813,5]
[340082436,1728483038847,-501.00978587,0.00037813,5]
[340082437,1728483038857,-500.0,0.00037813,5]
[340082438,1728483038868,-463.32760165,0.00037813,5]
[340082439,1728483038880,-500.39460453,0.00037813,5]
[340082440,1728483038894,-500.0,0.00037813,5]
[340082441,1728483038904,-500.0,0.00037813,2]
[340082442,1728483038915,-500.0,0.00037813,5]
[340082443,1728483038925,-287.86475777,0.0003786,5]
[340082444,1728483038937,-500.0,0.0003786,5]
[340082445,1728483038947,-2192.21718525,0.00037978,2]
[340082446,1728483038957,-158.5163506,0.00038328,2]
[340082447,1728483038969,-336.73581409,0.00038339,120]
[340082448,1728483038979,-965.32557831,0.00038342,2]
[340082449,1728483038989,-1000.0,0.00038421,120]
[340082450,1728483038999,-1102.42269967,0.00038421,120]
[340082451,1728483039010,-1546.2125,0.00038421,30]
[340082452,1728483039020,-14389.64983219,0.00038422,2]
[340082498,1728483043403,-624.88000006,0.00038422,2]
[340082763,1728483046370,-567.33718519,0.00038422,2]
[340082764,1728483046409,-1000.0,0.00038422,2]
[340085103,1728483198750,5000.0,0.0002102,2]
[340085104,1728483625986,1221.8940448,0.00021,2]
[340085250,1728484246363,-300.0,0.00022999,2]
[340085251,1728484246373,-300.0,0.00022999,2]
[340085252,1728484246383,-13912.75354933,0.00023,2]
[340085253,1728484246392,-3408.73742692,0.00032508,2]
[340085254,1728484246402,-193.87191763,0.000326,7]
[340085255,1728484246412,-17265.2983266,0.000326,2]
[340085257,1728484246421,-160.527516,0.00032608,2]
[340085258,1728484246431,-160.527516,0.00032702,2]
[340085259,1728484246440,-160.527516,0.00032797,2]
[340085260,1728484246449,-160.527516,0.00032891,2]
[340085261,1728484246459,-160.527516,0.00032986,2]
[340085262,1728484246469,-160.527516,0.0003308,2]
[340085263,1728484246478,-160.527516,0.00033174,2]
[340085264,1728484246488,-160.527516,0.00033269,2]
[340085265,1728484246498,-160.527516,0.00033363,2]
[340085266,1728484246508,-160.527516,0.00033458,2]
[340085267,1728484246517,-160.527516,0.00033552,2]
[340085268,1728484246526,-160.527516,0.00033646,2]
[340085269,1728484246535,-160.527516,0.00033741,2]
[340085270,1728484246545,-160.527516,0.00033835,2]
[340085271,1728484246554,-160.527516,0.0003393,2]
[340085272,1728484246564,-160.527516,0.00034024,2]
[340085273,1728484246575,-160.527516,0.00034119,2]
[340085274,1728484246584,-160.527516,0.00034213,2]
[340085275,1728484246593,-160.527516,0.00034307,2]
[340085276,1728484246604,-1800.0,0.00034618,2]
[340085277,1728484246613,-159.053089,0.00034645,2]
[340085278,1728484246622,-193.4447726,0.0003465,2]
[340085279,1728484246631,-159.053089,0.0003466,2]
[340085280,1728484246640,-159.053089,0.00034674,2]
[340085281,1728484246650,-159.053089,0.00034689,2]
[340085282,1728484246660,-159.053089,0.00034703,2]
[340085283,1728484246669,-159.053089,0.00034717,2]
[340085284,1728484246678,-159.053089,0.00034732,2]
[340085285,1728484246687,-159.053089,0.00034746,2]
[340085286,1728484246697,-194.6982611,0.0003475,2]
[340085287,1728484246706,-159.053089,0.00034761,2]
[340085288,1728484246716,-159.053089,0.00034775,2]
[340085289,1728484246725,-159.053089,0.0003479,2]
[340085290,1728484246734,-130.80219561,0.00034804,2]
[340085356,1728485432532,-1004.11442699,0.00033,2]
[340085358,1728485432544,-436.33522896,0.00033,2]
[340085390,1728485438994,-59.55034405,0.00033,2]
[340085392,1728485439004,-201.92365612,0.00033999,2]
[340085402,1728485440705,-198.07634388,0.00033999,2]
[340085403,1728485440716,-887.44079108,0.00034,2]
[340085432,1728485443861,-1041.50543224,0.00034,2]
[340085438,1728485444390,-3612.03860729,0.00034,2]
[340085439,1728485444400,-559.82670413,0.00034781,2]
[340085445,1728485446608,-503.31382489,0.00034781,2]
[340085446,1728485446651,-583.3,0.00034781,2]
[340085447,1728485446662,-736.87080341,0.00034781,2]
[340085450,1728485605720,1745.96152081,0.0002102,2]
[340085451,1728485613602,5000.0,0.0002102,2]
[340085452,1728485629154,1007.73518563,0.0002102,2]
[340085453,1728486003487,500.0,0.0001,2]
[340085454,1728486003899,500.0,0.0001,2]
[340085455,1728486004271,500.0,0.0001,2]
[340085456,1728486004651,155.56006502,0.0001,2]
[340085457,1728486100039,150.639546,0.0001,2]
[340085459,1728486411269,68872.4002947,0.0001,2]
[340085485,1728486631750,-200.0,0.00022,2]
[340085486,1728486631760,-201.0,0.00023014,2]
[340085487,1728486631770,-160.0,0.00030159,30]
[340085488,1728486631780,-160.0,0.00030953,30]
[340085489,1728486631790,-250.0,0.00031523,2]
[340085491,1728486631800,-160.0,0.00031746,30]
[340085493,1728486631810,-166.666666,0.00031753,2]
[340085495,1728486631820,-250.0,0.00031839,2]
[340085497,1728486631830,-166.937171,0.00032138,2]
[340085499,1728486631839,-159.534834,0.00032326,2]
[340085501,1728486631849,-160.0,0.0003254,30]
[340085502,1728486631858,-166.937171,0.00032557,2]
[340085504,1728486631868,-1168.9282763,0.00032636,2]
[340085506,1728486631879,-166.666666,0.00032836,2]
[340085508,1728486631888,-166.937171,0.00032976,2]
[340085509,1728486631898,-400.0,0.00032999,2]
[340085511,1728486631907,-3000.0,0.00033,17]
[340085513,1728486631918,-160.0,0.00033334,30]
[340085515,1728486631929,-166.937171,0.00033394,2]
[340085517,1728486631940,-166.937171,0.00033813,2]
[340085519,1728486631950,-458.17183139,0.000339,2]
[340085521,1728486631963,-166.666666,0.00033918,2]
[340085522,1728486631974,-5212.95339506,0.00034336,2]
[340085524,1728486631984,-5212.95339506,0.00034619,2]
[340085526,1728486631994,-28.25089339,0.00034804,2]
[340085527,1728486632123,-159.053089,0.00034819,2]
[340085528,1728486632137,-2982.64524859,0.000349,2]
[340085529,1728486632147,-185.325,0.00034967,40]
[340085530,1728486632156,-166.666666,0.00035,2]
[340085531,1728486632165,-20000.0,0.00035,120]
[340085532,1728486632174,-151.0,0.00035,14]
[340085533,1728486632184,-151.0,0.00035,14]
[340085534,1728486632194,-151.0,0.00035,14]
[340085535,1728486632204,-151.0,0.00035,14]
[340085536,1728486632215,-151.0,0.00035,14]
[340085537,1728486632225,-193.87191763,0.00035,14]
[340085538,1728486632234,-151.0,0.00035,14]
[340085539,1728486632245,-151.0,0.00035,14]
[340085540,1728486632257,-500.0,0.00035567,5]
[340085541,1728486632268,-180.0,0.00035567,5]
[340085542,1728486632280,-500.0,0.00035733,5]
[340085543,1728486632290,-328.43878845,0.00035733,5]
[340085544,1728486632300,-307.20337677,0.00035733,5]
[340085545,1728486632309,-500.0,0.00035767,5]
[340085546,1728486632318,-500.0,0.000358,5]
[340085547,1728486632328,-448.11490638,0.000358,2]
[340085548,1728486634595,568.4026116,0.0002102,2]
[340085576,1728486639946,-51.88509362,0.000358,2]
[340085577,1728486639956,-150.0,0.000358,5]
[340085578,1728486639965,-171.87211605,0.000358,5]
[340085579,1728486639975,-200.06283376,0.000358,5]
[340085580,1728486639988,-51.67995657,0.000358,5]
[340085581,1728486640001,-448.32004343,0.000358,5]
[340085582,1728486640011,-151.0,0.0003589,14]
[340085583,1728486640020,-151.0,0.0003589,14]
[340085584,1728486640032,-151.0,0.0003589,14]
[340085585,1728486640041,-151.0,0.0003589,14]
[340085586,1728486640051,-387.0,0.0003589,2]
[340085587,1728486640060,-387.0,0.00036,2]
[340085588,1728486640069,-166.666666,0.00036082,2]
[340085589,1728486640079,-151.0,0.0003637,14]
[340085590,1728486640089,-151.0,0.00036542,14]
[340085591,1728486640098,-151.0,0.00036542,14]
[340085592,1728486640108,-151.0,0.00036542,14]
[340085593,1728486640117,-151.0,0.00036542,14]
[340085594,1728486640127,-500.0,0.0003717,5]
[340085595,1728486640136,-1004.86163743,0.0003717,5]
[340085596,1728486640146,-387.0,0.00037397,2]
[340085597,1728486640156,-1882.0961245,0.00037966,2]
[340085638,1728486851821,9718.0,0.0002102,2]
[340085639,1728486945455,316.70664287,0.0002102,2]
[340085640,1728486954392,4023.3331978,0.0002102,2]
[340085653,1728487710714,824.30143065,0.00012,7]
[340085654,1728487718371,3210.00308849,0.00014,4]
[340085655,1728487731014,25000.0,0.0001,2]
[340085708,1728487832147,-240.92177433,0.00023,2]
[340085709,1728487832158,-300.0,0.00023999,2]
[340085710,1728487832168,-300.0,0.00023999,2]
[340085711,1728487832178,-8379.57188094,0.00024,2]
[340085712,1728487832187,-500.0,0.00024,2]
[340085713,1728487832197,-1452.16588249,0.0003,10]
[340085714,1728487832209,-600.0,0.0003,10]
[340085758,1728487838373,-252.68,0.0003,10]
[340085802,1728487843327,-150.0,0.00024,2]
[340085804,1728487843469,-13.48562246,0.0003,10]
[340085805,1728487843479,-220.0,0.00035,2]
[340085806,1728487843493,-249.0,0.0003589,60]
[340085807,1728487843509,-242.0,0.0003589,2]
[340085808,1728487843519,-523.86206554,0.000359,5]
[340085809,1728487843528,-242.0,0.00036,2]
[340085810,1728487843537,-167.0,0.00036,2]
[340085811,1728487843546,-303.14624183,0.00036542,14]
[340085812,1728487843555,-242.0,0.00037397,2]
[340085813,1728487843564,-167.0,0.00037397,2]
[340085814,1728487843575,-3084.37424137,0.00037576,2]
[340085815,1728487843584,-160.0,0.00037699,5]
[340085816,1728487843594,-848.27743021,0.00037927,2]
[340085817,1728487843603,-856.78913978,0.00037965,2]
[340085818,1728487843613,-2532.49792788,0.00038096,4]
[340085915,1728489032173,-248.999999,0.0003189,60]
[340085918,1728489032183,-660.0,0.00035041,2]
[340085920,1728489032194,-595.11864946,0.00035153,2]